{"text_format":"1","workbook":"xlsx","n_sheets":5,"sheets":["Меню","Заявка на договор ТП юр лицо","Заявка на договор ТП для ИП","Заявка на договор ТП физлиц","Списки"],"not_rendered":{"charts":0,"images":0,"macros":0,"external_links":1,"defined_names":9,"comments":0,"pivot_tables":0},"unopened":[],"bounds":{"document_bytes":16777216,"sheet_cells":100000,"rows_first":2000,"rows_last":500,"rows_between":2000,"halvings":0,"cell_chars":16384,"cell_head_chars":4096},"cells_cut":0,"cells_raw":0,"read":"whole","date_system":"1900"}

{"sheet":"Меню","index":0,"n_rows":9,"n_cols":2,"rows_kept":9,"cut":false,"hidden":false,"merged":[]}
[]
[null,"Выберите нужный вариант:"]
[null,"Заключение Договора о подключении к системе теплоснабжения ООО \"ТСК Мосэнерго\""]
[null,"Форма заявки на подключение к системе теплоснабжения ООО \"ТСК Мосэнерго\" в случае если Вы:"]
[null,"Юридическое лицо"]
[]
[null,"Индивидуальный предприниматель"]
[]
[null,"Физическое лицо"]

{"sheet":"Заявка на договор ТП юр лицо","index":1,"n_rows":165,"n_cols":12,"rows_kept":165,"cut":false,"hidden":false,"merged":[[9,1,9,10],[106,5,106,10],[107,5,107,10],[108,5,108,10],[109,5,109,10],[128,2,128,3],[128,6,128,8],[110,1,110,2],[110,3,110,4],[111,1,111,2],[111,3,111,4],[111,5,111,10],[50,2,50,10],[102,1,102,10],[87,1,89,10],[106,1,106,2],[106,3,106,4],[107,1,107,2],[107,3,107,4],[109,1,109,2],[109,3,109,4],[35,6,35,10],[42,1,42,4],[27,2,27,10],[16,1,16,10],[23,2,23,7],[19,0,21,0],[162,2,162,3],[162,9,162,10],[115,1,115,2],[115,4,115,10],[136,1,138,10],[142,1,143,10],[161,9,161,10],[112,1,112,3],[112,9,112,10],[108,1,108,2],[108,3,108,4],[52,2,52,10],[159,2,159,9],[110,5,110,10],[104,1,104,10],[39,8,39,10],[41,8,41,10],[63,9,63,10],[61,9,61,10],[147,2,147,9],[140,1,140,10],[19,2,19,4],[19,6,19,10],[19,11,21,11],[20,3,20,4],[20,6,20,7],[21,9,21,10],[25,9,25,10],[22,2,22,7],[22,9,22,10],[24,2,24,7],[24,9,24,10],[2,8,2,11],[43,2,43,10],[96,1,96,10],[83,1,83,10],[33,2,33,4],[33,6,33,10],[46,2,46,5],[4,1,4,10],[5,1,5,10],[7,1,7,10],[10,1,10,10],[48,2,48,10],[11,1,11,10],[13,1,14,1],[13,2,14,2],[13,4,14,5],[13,6,14,6],[13,7,14,9],[41,2,41,4],[37,2,37,10],[26,2,26,10],[39,2,39,4],[16,11,18,11],[18,2,18,10],[29,2,29,10],[31,2,31,3],[149,2,149,9],[151,2,151,9],[153,2,153,9],[154,2,154,9],[155,2,155,9],[157,2,157,9],[56,2,56,10],[58,2,58,10],[122,1,122,10],[117,1,117,10],[119,1,120,10],[99,1,101,10],[60,1,60,10],[97,1,97,10],[31,7,31,8],[46,7,46,10],[132,1,132,2],[35,2,35,4],[95,1,95,10],[124,1,124,10]]}
[]
[null,"НА БЛАНКЕ ОРГАНИЗАЦИИ",null,null,null,null,null,null,null,null,null,"Комментарии для заполнения:"]
[null,null,null,null,null,null,null,null,"Генеральному директору\nООО «ТСК Мосэнерго»\nГоряинову Д.В."]
[]
[null,"ЗАЯВКА НА ПОДКЛЮЧЕНИЕ К СИСТЕМЕ ТЕПЛОСНАБЖЕНИЯ ООО \"ТСК МОСЭНЕРГО\""]
[null,"(для юридического лица)"]
[]
[null,"Уважаемый Денис Викторович!"]
[]
[null,"Прошу Вас заключить договор о подключении к системе теплоснабжения ООО \"ТСК Мосэнерго\" объекта капитального строительства: "]
[null,"(наименование объекта)"]
[null,"(наименование объекта)"]
[]
[null,"в связи с: необходимостью подключения нового объекта",null,null,"увеличением тепловой нагрузки или тепловой мощности подключаемого объекта",null,null,"реконструкцией или модернизацией объекта без увеличения тепловой нагрузки или тепловой мощности",null,null,null,"Необходимо выбрать нужный вариант"]
[]
[]
[null,"1. Сведения о заявителе:"]
[]
[null,"Полное наименование организации"]
[]
[null,"Запись о включении в ЕГРЮЛ (ОГРН)","от",null,null,"№"]
[]
[null,"Ф.И.О. уполномоченного органа (представителя)"]
[null,null,"*В данной графе указываются лица, имеющие право действовать от имени Общества на основании доверенности, либо без доверенности на основании учредительных документов."]
[null,"Документ, подтверждающий полномочия представителя"]
[]
[null,"Адрес места нахождения","Индекс, город, улица, дом, строение, корпус, владение"]
[null,null,"** Место нахождения юридического лица определяется местом его государственной регистрации на территории Российской Федерации. Юридическое лицо несет риск последствий неполучения юридически значимых сообщений, доставленных по адресу, указанному в ЕГРЮЛ. Сообщения, доставленные по адресу, указанному в ЕГРЮЛ, считаются полученными юридическим лицом, даже если оно не находится по указанному адресу."]
[]
[null,"Почтовой адрес","Индекс, город, улица, дом, строение, корпус, владение"]
[]
[null,"ИНН",null,null,"КПП",null,"ОКПО"]
[]
[null,"р/с",null,null,null,"в"]
[]
[null,"К/С (Л/С для бюджетных организаций)",null,null,null,"БИК"]
[]
[null,"Контактное лицо (Ф.И.О.)"]
[]
[null,"Основной телефон ",null,null,null,null,null,"Дополнительный телефон"]
[]
[null,"Основной e-mail",null,null,null,null,null,"Дополнительный e-mail"]
[null,"Уведомить меня по основным контактным данным "]
[null,null,"*** В случае если Заявитель будет недоступен по вышеуказанному контакту, Технические условия подключения будут отправлены почтой по  адресу, указанному в Разделе 1 настоящего Запроса"]
[null,"2. Местонахождение подключаемого объекта"]
[]
[null,"Город",null,null,null,null,"Район"]
[]
[null,"Область"]
[]
[null,"Населённый пункт"]
[]
[null,"Улица"]
[]
[null,"Дом",null,null,"Владение",null,"Корпус",null,null,"Строение"]
[]
[null,"Прочее"]
[]
[null,"Кадастровый номер"]
[]
[null,"3. Технические параметры подключаемого объекта"]
[null,"3.1 Таблица тепловых нагрузок по видам потребления ",null,null,null,null,null,null,null,"поле не заполняется",null,"Таблица заполняется одна из двух представленных"]
[null,"(Заполняется одна из двух таблиц)"]
[null,"Для неподключенных строящихся (построенных) объектов:",null,null,null,null,null,null,null,"поле считается автоматически"]
[]
[null,"Наименование","Отопление","Вентиляция","Тепловые завесы","ГВС ср.","ГВС макс.","Кондиционирование","Прочее","Всего (с учетом ГВС ср.)","Всего (с учетом ГВС макс)"]
[null,"Тепловая нагрузка, Гкал / час",0,0,0,0,0,0,0,{"$f":"C67+D67+E67+F67+H67+I67","v":0},{"$f":"C67+D67+E67+G67+H67+I67","v":0}]
[null,"Температурный график"]
[null,"Вид теплоносителя"]
[null,"Давление, м вод. ст."]
[null,"Схема подключения ",null,null,null,null,null,null,null,null,null,"Необходимо выбрать из выпадающего списка"]
[]
[null,"Для реконструируемых объектов:"]
[]
[null,"Наименование","Отопление","Вентиляция","Тепловые завесы","ГВС ср.","ГВС макс.","Кондиционирование","Прочее","Всего (с учетом ГВС ср.)","Всего (с учетом ГВС макс)"]
[null,"Тепловая нагрузка существующая, Гкал / час",0,0,0,0,0,0,0,{"$f":"C76+D76+E76+F76+H76+I76","v":0},{"$f":"C76+D76+E76+G76+H76+I76","v":0}]
[null,"Тепловая нагрузка после реконструкции, Гкал / час",0,0,0,0,0,0,0,{"$f":"C77+D77+E77+F77+H77+I77","v":0},{"$f":"C77+D77+E77+G77+H77+I77","v":0}]
[null,"Тепловая нагрузка дополнительная, Гкал / час",{"$f":"C77-C76","v":0},{"$f":"D77-D76","v":0},0,0,0,0,0,{"$f":"J77-J76","v":0},{"$f":"K77-K76","v":0},"Считается как разница между Тепловая нагрузка после реконструкции и Тепловая нагрузка существующая"]
[null,"Темп. график"]
[null,"Вид теплоносителя"]
[null,"Давление, м вод. ст."]
[null,"Схема подключения",null,null,null,null,null,null,null,null,null,"Необходимо выбрать из выпадающего списка"]
[]
[null,"ВАЖНО: Если в рамках заявки на подключение планируется заключение договора о подключении нескольких объектов капитального строительства, то заявка должна содержать в себе таблицы нагрузок по каждому объекту."]
[]
[null,"3.2 Режимы теплопотребления для подключаемого объекта:"]
[]
[null,null,null,null,null,null,null,null,null,null,null,"Необходимо выбрать из выпадающего списка"]
[]
[]
[null,"Если нужного варианта режима в списке нет, укажите собственный вариант"]
[]
[]
[null,"3.3 Расположение узла учета тепловой энергии и теплоносителей и контроля их качества"]
[]
[]
[]
[null,"3.4 Требования к надежности теплоснабжения подключаемого объекта (допустимые перерывы в подаче теплоносителей  по продолжительности, периодам годам и др.)"]
[]
[null,null,null,null,null,null,null,null,null,null,null,"Необходимо выбрать из выпадающего списка"]
[]
[]
[null,"При этом для категорий надежности 2 и 3 предусматривается перерыв в теплоснабжении в летний период времени на срок не более 14 дней, обусловленный проведением гидравлических испытаний  "]
[]
[null,"3.5 Наличие и возможность использования собственных источников тепловой энергии (с указанием их мощностей и режимов работы)"]
[]
[null,"Наименование источника тепловой энергии",null,"Тепловая мощность,\nГкал / час",null,"Режим работы"]
[]
[]
[]
[]
[]
[]
[null,"3.6 Назначение объекта:"]
[]
[null,null,null,null,{"$f":"IF(B116=Списки!B25,Списки!C25,IF(B116=Списки!B26,Списки!C26,IF(B116=Списки!B27,Списки!C27,IF(B116=Списки!B28,Списки!C28,IF(B116=Списки!B29,Списки!C29,IF(B116=Списки!B30,Списки!C30,IF(B116=Списки!B31,Списки!C31,IF(B116=Списки!B32,Списки!C32,IF(B116=Списки!B33,Списки!C33,IF(B116=Списки!B34,Списки!C34,IF(B116=Списки!B35,Списки!C35,IF(B116=Списки!B36,Списки!C36,IF(B116=Списки!B37,Списки!C37,IF(B116=Списки!B38,Списки!C38,IF(B116=Списки!B39,Списки!C39,IF(B116=Списки!B40,Списки!C40,IF(B116=Списки!B41,Списки!C41,IF(B116=Списки!B42,Списки!C42,IF(B116=Списки!B43,Списки!C43,IF(B116=Списки!B44,Списки!C44,IF(B116=Списки!B45,Списки!C45,IF(B116=Списки!#REF!,Списки!#REF!,IF(B116=Списки!B46,Списки!C46,IF(B116=Списки!B47,Списки!C47,))))))))))))))))))))))))","v":"-"},null,null,null,null,null,null,"Необходимо выбрать из выпадающего списка"]
[]
[null,"4. Правовые основания пользования заявителем подключаемым объектом (при подключении существующего подключаемого объекта):"]
[]
[]
[]
[]
[null,"5. Правовые основания пользования заявителем земельным участком, на котором расположен существующий подключаемый объект или предполагается создание подключаемого объекта:"]
[]
[]
[]
[null,"6. Информация о возможности подключения или технические условия подключения (если ранее выдавались)"]
[]
[null,"от","дд.мм.гг",null,null,"№"]
[]
[null,"7. Планируемый срок подключения:"]
[]
[null,"мм.гг",null,null,null,null,"* Указывается в случае, если планируемый срок подключения превышает 18 месяцев со дня заключения договора о подключении"]
[]
[null,"8. Информация о виде разрешенного использования земельного участка:"]
[]
[]
[]
[]
[]
[null,"9. Информация о предельных параметрах разрешенного строительства / реконструкции / модернизации подключаемого объекта (площадь, строительный объем, этажность):"]
[]
[]
[]
[]
[]
[]
[null,null,"Перечень необходимых документов для заключения Договора о подключении к системе теплоснабжения ООО \"ТСК Мосэнерго\":"]
[]
[null,"1.","копии правоустанавливающих документов, подтверждающих право собственности или иное законное право заявителя на подключаемый объект или земельный участок, права на которые не зарегистрированы в Едином государственном реестре недвижимости (в случае если такие права зарегистрированы в указанном реестре, представляются соответствующие выписки из Единого государственного реестра недвижимости с датой выдачи не ранее 30 дней), заверенные заявителем;"]
[]
[null,"2.","ситуационный план расположения подключаемого объекта с привязкой к территории населенного пункта или элементам территориального деления в схеме теплоснабжения;"]
[]
[null,"3.","топографическая карта земельного участка в масштабе 1:500 (для квартальной застройки 1:2000) с указанием всех наземных и подземных коммуникаций и сооружений;"]
[]
[null,"4.","копии документов, подтверждающих полномочия лица, действующего от имени заявителя (в случае если заявка подается представителем заявителя), заверенные заявителем;"]
[]
[null,"5.","копии учредительных документов (устав юридического лица (в том числе все изменения и дополнения к нему ), действующие банковские реквизиты, заверенные заявителем;"]
[]
[null,"6.","при наличии утвержденная комплексная схема инженерного обеспечения территории, утвержденный проект планировки территории и (или) разрешение на строительство."]
[]
[null,"Заявитель",null,null,null,null,null,null,null,"дд.мм.гг"]
[null,null,"ФИО",null,null,null,"Подпись",null,null,"Дата"]
[]
[null,"М.П."]

{"sheet":"Заявка на договор ТП для ИП","index":2,"n_rows":152,"n_cols":12,"rows_kept":152,"cut":false,"hidden":false,"merged":[[7,1,7,10],[8,1,8,10],[9,1,9,10],[11,1,12,1],[11,2,12,2],[11,3,12,5],[11,6,12,6],[11,7,12,9],[14,1,14,10],[14,11,16,11],[16,2,16,10],[17,0,19,0],[17,2,17,4],[17,6,17,10],[17,11,19,11],[18,3,18,4],[18,6,18,7],[19,9,19,10],[24,2,24,10],[25,9,25,10],[28,2,28,3],[28,7,28,8],[30,2,30,4],[30,6,30,10],[20,2,20,7],[20,9,20,10],[21,2,21,7],[22,2,22,7],[22,9,22,10],[23,9,23,10],[40,1,40,4],[41,2,41,10],[44,2,44,5],[44,7,44,10],[46,2,46,10],[48,2,48,4],[32,2,32,4],[32,6,32,10],[34,2,34,10],[36,2,36,4],[36,8,36,10],[38,2,38,4],[38,8,38,10],[90,1,90,10],[92,1,92,10],[95,1,95,10],[97,1,97,10],[50,2,50,10],[58,1,58,10],[59,9,59,10],[61,9,61,10],[81,1,81,10],[85,1,85,10],[54,2,54,10],[56,2,56,10],[94,1,94,10],[148,9,148,10],[149,2,149,3],[149,9,149,10],[3,1,3,10],[4,1,4,10],[6,1,6,10],[135,2,135,9],[105,1,105,3],[105,9,105,10],[108,1,108,2],[108,4,108,10],[110,1,110,10],[103,1,103,2],[103,3,103,4],[103,5,103,10],[104,1,104,2],[104,3,104,4],[104,5,104,10],[112,1,113,10],[115,1,115,10],[117,1,117,10],[120,2,120,3],[132,1,132,10],[136,2,136,9],[138,2,138,9],[140,2,140,9],[141,2,141,9],[142,2,142,9],[144,2,144,9],[146,2,146,9],[1,8,1,11],[120,6,120,8],[124,1,124,2],[128,1,128,10],[130,1,130,10],[101,1,101,2],[101,3,101,4],[101,5,101,10],[102,1,102,2],[102,3,102,4],[102,5,102,10],[99,1,99,2],[99,3,99,4],[99,5,99,10],[100,1,100,2],[100,3,100,4],[26,2,26,10],[100,5,100,10]]}
[]
[null,"НА БЛАНКЕ ОРГАНИЗАЦИИ",null,null,null,null,null,null,"Генеральному директору\nООО «ТСК Мосэнерго»\nГоряинову Д.В."]
[]
[null,"ЗАЯВКА НА ПОДКЛЮЧЕНИЕ К СИСТЕМЕ ТЕПЛОСНАБЖЕНИЯ ООО \"ТСК МОСЭНЕРГО\""]
[null,"(для индивидуального предпринимателя)"]
[]
[null,"Уважаемый Денис Викторович!"]
[null,"Прошу Вас заключить договор о подключении к системе теплоснабжения ООО \"ТСК МОСЭНЕРГО\" объекта капитального строительства:"]
[null,"(наименование объекта)"]
[null,"(наименование объекта)"]
[]
[null,"в связи с: необходимостью подключения нового объекта",null,"увеличением тепловой нагрузки или тепловой мощности подключаемого объекта",null,null,null,"реконструкцией или модернизацией объекта без увеличения тепловой нагрузки или тепловой мощности",null,null,null,"Необходимо выбрать нужный вариант"]
[]
[]
[null,"1. Сведения о заявителе:"]
[]
[null,"Ф.И.О. индивидуального предпринимателя"]
[]
[null,"Запись о включении в ЕГРИП (ОГРНИП)","от",null,null,"№"]
[]
[null,"Ф.И.О. представителя (уполномоченного лица)"]
[null,null,"*В данной графе указываются лица, имеющие право действовать от имени ИП на основании доверенности."]
[null,"Документ, подтверждающий полномочия представителя"]
[]
[null,"Адрес регистрации","Индекс, город, улица, дом, строение, корпус, владение"]
[]
[null,"Почтовой адрес","Индекс, город, улица, дом, строение, корпус, владение"]
[]
[null,"ИНН",null,null,"КПП",null,"ОКПО"]
[]
[null,"р/с",null,null,null,"в"]
[]
[null,"к/с",null,null,null,"БИК"]
[]
[null,"Контактное лицо (Ф.И.О.)"]
[]
[null,"Основной телефон ",null,null,null,null,null,"Дополнительный телефон"]
[]
[null,"Основной e-mail",null,null,null,null,null,"Дополнительный e-mail"]
[]
[null,"Уведомить меня по основным контактным данным ",null,null,null,null,null,null,null,null,null,"Необходимо выбрать нужный вариант"]
[null,null,"*** В случае если Заявитель будет недоступен по вышеуказанному контакту, Технические условия подключения будут отправлены почтой по  адресу, указанному в Разделе 1 настоящего Запроса"]
[null,"2. Местонахождение подключаемого объекта:"]
[]
[null,"Город",null,null,null,null,"Район"]
[]
[null,"Населённый пункт"]
[]
[null,"Округ",null,null,null,null,null,null,null,null,null,"Необходимо выбрать из выпадающего списка"]
[]
[null,"Улица"]
[]
[null,"Дом",null,null,"Владение",null,"Корпус",null,null,"Строение"]
[]
[null,"Прочее"]
[]
[null,"Кадастровый номер"]
[]
[null,"3. Технические параметры подключаемого объекта:"]
[null,"3.1 Таблица тепловых нагрузок по видам потребления ",null,null,null,null,null,null,null,"поле не заполняется",null,"Таблица заполняется одна из двух представленных"]
[null,"(Заполняется одна из двух таблиц)"]
[null,"Для неподключенных строящихся (построенных) объектов:",null,null,null,null,null,null,null,"поле считается автоматически"]
[]
[null,"Наименование","Отопление","Вентиляция","Тепловые завесы","ГВС ср.","ГВС макс.","Кондиционирование","Прочее","Всего (с учетом ГВС ср.)","Всего (с учетом ГВС макс)"]
[null,"Тепловая нагрузка, Гкал / час",0,0,0,0,0,0,0,{"$f":"C65+D65+E65+F65+H65+I65","v":0},{"$f":"C65+D65+E65+G65+H65+I65","v":0}]
[null,"Температурный график"]
[null,"Вид теплоносителя"]
[null,"Давление, м вод. ст."]
[null,"Схема подключения ",null,null,null,null,null,null,null,null,null,"Необходимо выбрать из выпадающего списка"]
[]
[null,"Для реконструируемых объектов:"]
[]
[null,"Наименование","Отопление","Вентиляция","Тепловые завесы","ГВС ср.","ГВС макс.","Кондиционирование","Прочее","Всего (с учетом ГВС ср.)","Всего (с учетом ГВС макс)"]
[null,"Тепловая нагрузка существующая, Гкал / час",0,0,0,0,0,0,0,{"$f":"C74+D74+E74+F74+H74+I74","v":0},{"$f":"C74+D74+E74+G74+H74+I74","v":0}]
[null,"Тепловая нагрузка после реконструкции, Гкал / час",0,0,0,0,0,0,0,{"$f":"C75+D75+E75+F75+H75+I75","v":0},{"$f":"C75+D75+E75+G75+H75+I75","v":0}]
[null,"Тепловая нагрузка дополнительная, Гкал / час",{"$f":"C75-C74","v":0},{"$f":"D75-D74","v":0},0,0,0,0,0,{"$f":"J75-J74","v":0},{"$f":"K75-K74","v":0},"Считается как разница между Тепловая нагрузка после реконструкции и Тепловая нагрузка существующая"]
[null,"Температурный график"]
[null,"Вид теплоносителя"]
[null,"Давление, м вод. ст."]
[null,"Схема подключения",null,null,null,null,null,null,null,null,null,"Необходимо выбрать из выпадающего списка"]
[]
[null,"ВАЖНО: Если в рамках заявки на подключение планируется заключение договора о подключении нескольких объектов капитального строительства, то заявка должна содержать в себе таблицы нагрузок по каждому объекту."]
[]
[null,"3.2 Режимы теплопотребления для подключаемого объекта:"]
[]
[null,null,null,null,null,null,null,null,null,null,null,"Необходимо выбрать из выпадающего списка"]
[null,"Если нужного варианта режима в списке нет, укажите собственный вариант"]
[]
[null,"3.3 Расположение узла учета тепловой энергии и теплоносителей и контроля их качества"]
[]
[]
[]
[null,"3.4 Требования к надежности теплоснабжения подключаемого объекта (допустимые перерывы в подаче теплоносителей  по продолжительности, периодам годам и др.)"]
[]
[null,null,null,null,null,null,null,null,null,null,null,"Необходимо выбрать из выпадающего списка"]
[null,"При этом для категорий надежности 2 и 3 предусматривается перерыв в теплоснабжении в летний период времени на срок не более 14 дней, обусловленный проведением гидравлических испытаний  "]
[]
[null,"3.5 Наличие и возможность использования собственных источников тепловой энергии (с указанием их мощностей и режимов работы)"]
[]
[null,"Наименование источника тепловой энергии",null,"Тепловая мощность,\nГкал / час",null,"Режим работы"]
[]
[]
[]
[]
[]
[]
[null,"3.6 Назначение объекта:"]
[]
[null,null,null,null,{"$f":"IF(B109=[1]Списки!B25,[1]Списки!C25,IF(B109=[1]Списки!B26,[1]Списки!C26,IF(B109=[1]Списки!B27,[1]Списки!C27,IF(B109=[1]Списки!B28,[1]Списки!C28,IF(B109=[1]Списки!B29,[1]Списки!C29,IF(B109=[1]Списки!B30,[1]Списки!C30,IF(B109=[1]Списки!B31,[1]Списки!C31,IF(B109=[1]Списки!B32,[1]Списки!C32,IF(B109=[1]Списки!B33,[1]Списки!C33,IF(B109=[1]Списки!B34,[1]Списки!C34,IF(B109=[1]Списки!B35,[1]Списки!C35,IF(B109=[1]Списки!B36,[1]Списки!C36,IF(B109=[1]Списки!B37,[1]Списки!C37,IF(B109=[1]Списки!B38,[1]Списки!C38,IF(B109=[1]Списки!B39,[1]Списки!C39,IF(B109=[1]Списки!B40,[1]Списки!C40,IF(B109=[1]Списки!B41,[1]Списки!C41,IF(B109=[1]Списки!B42,[1]Списки!C42,IF(B109=[1]Списки!B43,[1]Списки!C43,IF(B109=[1]Списки!B44,[1]Списки!C44,IF(B109=[1]Списки!B45,[1]Списки!C45,IF(B109=[1]Списки!B46,[1]Списки!B46,IF(B109=[1]Списки!B47,[1]Списки!C47,IF(B109=[1]Списки!B48,[1]Списки!C48,))))))))))))))))))))))))","v":"-"},null,null,null,null,null,null,"Необходимо выбрать из выпадающего списка"]
[]
[null,"4. Правовые основания пользования заявителем подключаемым объектом (при подключении существующего подключаемого объекта):"]
[]
[]
[]
[]
[null,"5. Правовые основания пользования заявителем земельным участком, на котором расположен существующий подключаемый объект или предполагается создание подключаемого объекта:"]
[]
[]
[null,"6. Информация о возможности подключения или технические условия подключения  (если ранее выдавались)"]
[]
[null,"от","дд.мм.гг",null,null,"№"]
[]
[null,"7. Планируемый срок подключения:"]
[]
[null,"мм.гг",null,null,null,null,"* Указывается в случае, если планируемый срок подключения превышает 18 месяцев со дня заключения договора о подключении"]
[]
[null,"8. Информация о виде разрешенного использования земельного участка:"]
[]
[]
[]
[null,"9. Информация о предельных параметрах разрешенного строительства / реконструкции / модернизации подключаемого объекта (площадь, строительный объем, этажность):"]
[]
[]
[]
[]
[null,null,"Перечень необходимых документов для заключения Договора о подключении к системе теплоснабжения ООО \"ТСК Мосэнерго\":"]
[null,"1.","копии правоустанавливающих документов, подтверждающих право собственности или иное законное право заявителя на подключаемый объект или земельный участок, права на которые не зарегистрированы в Едином государственном реестре недвижимости (в случае если такие права зарегистрированы в указанном реестре, представляются соответствующие выписки из Единого государственного реестра недвижимости с датой выдачи не ранее 30 дней), заверенные заявителем;"]
[]
[null,"2.","ситуационный план расположения подключаемого объекта с привязкой к территории населенного пункта или элементам территориального деления в схеме теплоснабжения;"]
[]
[null,"3.","топографическая карта земельного участка в масштабе 1:500 (для квартальной застройки 1:2000) с указанием всех наземных и подземных коммуникаций и сооружений ;"]
[]
[null,"4.","копии документов, подтверждающих полномочия лица, действующего от имени заявителя (в случае если заявка подается представителем заявителя), заверенные заявителем;"]
[]
[null,"5.","копии учредительных документов (копии основного государственного регистрационного номера индивидуального предпринимателя и идентификационного номера налогоплательщика, заверенные заявителем), действующие банковские реквизиты;"]
[]
[null,"6.","при наличии утвержденная комплексная схема инженерного обеспечения территории, утвержденный проект планировки территории и (или) разрешение на строительство."]
[]
[null,"Заявитель",null,null,null,null,null,null,null,"дд.мм.гг"]
[null,null,"ФИО",null,null,null,"Подпись",null,null,"Дата"]
[]
[null,"М.П."]

{"sheet":"Заявка на договор ТП физлиц","index":3,"n_rows":158,"n_cols":12,"rows_kept":158,"cut":false,"hidden":false,"merged":[[1,8,1,11],[9,1,9,10],[12,1,13,1],[12,2,13,2],[12,3,13,5],[12,6,13,6],[12,7,13,9],[3,1,3,10],[4,1,4,10],[6,1,6,10],[8,1,8,10],[10,1,10,10],[18,0,41,0],[18,2,18,4],[18,6,18,10],[18,11,41,11],[19,2,19,7],[20,9,20,10],[21,2,21,3],[30,2,30,3],[30,7,30,8],[21,5,21,6],[21,9,21,10],[23,2,23,6],[23,9,23,10],[25,2,25,10],[26,9,26,10],[41,2,41,4],[41,8,41,10],[33,2,33,10],[34,2,34,10],[35,2,35,10],[37,2,37,10],[39,2,39,4],[39,8,39,10],[15,1,15,10],[15,11,17,11],[17,2,17,10],[49,2,49,10],[51,2,51,4],[53,2,53,10],[28,2,28,10],[61,1,61,10],[62,9,62,10],[64,9,64,10],[43,1,43,4],[44,2,44,10],[47,2,47,5],[47,7,47,10],[101,1,101,10],[103,1,103,10],[57,2,57,10],[59,2,59,10],[88,1,88,10],[100,1,100,10],[105,1,105,2],[105,3,105,4],[105,5,105,10],[106,1,106,2],[106,3,106,4],[106,5,106,10],[84,1,84,10],[94,1,96,10],[98,1,98,10],[155,2,155,3],[155,9,155,10],[141,2,141,9],[144,2,144,9],[146,2,146,9],[147,2,147,9],[148,2,148,9],[150,2,150,9],[152,2,152,9],[154,9,154,10],[135,1,135,10],[137,1,137,10],[139,1,139,10],[142,2,142,9],[109,1,109,2],[109,3,109,4],[109,5,109,10],[110,1,110,2],[110,3,110,4],[110,5,110,10],[111,1,111,3],[111,9,111,10],[114,1,114,2],[114,4,114,10],[116,1,116,10],[118,1,119,10],[121,1,121,10],[124,1,124,10],[122,1,122,10],[123,1,123,10],[107,1,107,2],[107,3,107,4],[107,5,107,10],[108,1,108,2],[108,3,108,4],[108,5,108,10],[127,2,127,3],[127,6,127,8],[131,1,131,2]]}
[]
[null,null,null,null,null,null,null,null,"Генеральному директору\nООО «ТСК Мосэнерго»\nГоряинову Д.В."]
[]
[null,"ЗАЯВКА НА ПОДКЛЮЧЕНИЕ К СИСТЕМЕ ТЕПЛОСНАБЖЕНИЯ ООО \"ТСК МОСЭНЕРГО\""]
[null,"(для физического лица)"]
[]
[null,"Уважаемый Денис Викторович!"]
[]
[null,"Прошу Вас заключить договор о подключении к системе теплоснабжения ООО \"ТСК Мосэнерго\" объекта капитального строительства: "]
[null,"(наименование объекта)"]
[null,"(наименование объекта)"]
[null,"в связи с:"]
[null,"необходимостью подключения нового объекта",null,"увеличением тепловой нагрузки или тепловой мощности подключаемого объекта",null,null,null,"реконструкцией или модернизацией объекта без увеличения тепловой нагрузки или тепловой мощности",null,null,null,"Необходимо выбрать нужный вариант"]
[]
[]
[null,"1. Сведения о заявителе:"]
[]
[null,"Ф.И.О. физического лица"]
[]
[null,"Наименование документа, \nудостоверяющего личность"]
[]
[null,"Серия",null,null,"№",null,null,null,"Код подразделения"]
[]
[null,"Выдан",null,null,null,null,null,null,"Дата выдачи","дд.мм.гг"]
[]
[null,"Адрес регистрации","Индекс, город, улица, дом, строение, корпус, владение"]
[]
[]
[null,"Почтовой адрес","Индекс, город, улица, дом, строение, корпус, владение"]
[]
[null,"ИНН"]
[]
[]
[null,"Ф.И.О. представителя (уполномоченного лица)"]
[null,null,"*В данной графе указываются лица, имеющие право действовать от имени физического лица на основании доверенности."]
[null,"Документ, подтверждающий полномочия представителя"]
[]
[null,"Контактное лицо (Ф.И.О.)"]
[]
[null,"Основной телефон ",null,null,null,null,null,"Дополнительный телефон"]
[]
[null,"Основной e-mail",null,null,null,null,null,"Дополнительный e-mail"]
[]
[null,"Уведомить меня по основным контактным данным ",null,null,null,null,null,null,null,null,null,"Необходимо выбрать нужный вариант"]
[null,null,"*** В случае если Заявитель будет недоступен по вышеуказанному контакту, Технические условия подключения будут отправлены почтой по  адресу, указанному в Разделе 1 настоящего Запроса"]
[null,"2. Местонахождение подключаемого объекта:"]
[]
[null,"Город",null,null,null,null,"Район"]
[]
[null,"Населённый пункт"]
[]
[null,"Округ",null,null,null,null,null,null,null,null,null,"Необходимо выбрать из выпадающего списка"]
[]
[null,"Улица"]
[]
[null,"Дом",null,null,"Владение",null,"Корпус",null,null,"Строение"]
[]
[null,"Прочее"]
[]
[null,"Кадастровый номер"]
[]
[null,"3. Технические параметры подключаемого объекта:"]
[null,"3.1 Таблица тепловых нагрузок по видам потребления ",null,null,null,null,null,null,null,"поле не заполняется",null,"Таблица заполняется одна из двух представленных"]
[null,"(Заполняется одна из двух таблиц)"]
[null,"Для неподключенных строящихся (построенных) объектов:",null,null,null,null,null,null,null,"поле считается автоматически"]
[]
[null,"Наименование","Отопление","Вентиляция","Тепловые завесы","ГВС ср.","ГВС макс.","Кондиционирование","Прочее","Всего (с учетом ГВС ср.)","Всего (с учетом ГВС макс)"]
[null,"Тепловая нагрузка, Гкал / час",0,0,0,0,0,0,0,{"$f":"C68+D68+E68+F68+H68+I68","v":0},{"$f":"C68+D68+E68+G68+H68+I68","v":0}]
[null,"Температурный график"]
[null,"Вид теплоносителя"]
[null,"Давление, м вод. ст."]
[null,"Схема подключения ",null,null,null,null,null,null,null,null,null,"Необходимо выбрать из выпадающего списка"]
[]
[null,"Для реконструируемых объектов:"]
[]
[null,"Наименование","Отопление","Вентиляция","Тепловые завесы","ГВС ср.","ГВС макс.","Кондиционирование","Прочее","Всего (с учетом ГВС ср.)","Всего (с учетом ГВС макс)"]
[null,"Тепловая нагрузка существующая, Гкал / час",0,0,0,0,0,0,0,{"$f":"C77+D77+E77+F77+H77+I77","v":0},{"$f":"C77+D77+E77+G77+H77+I77","v":0}]
[null,"Тепловая нагрузка после реконструкции, Гкал / час",0,0,0,0,0,0,0,{"$f":"C78+D78+E78+F78+H78+I78","v":0},{"$f":"C78+D78+E78+G78+H78+I78","v":0}]
[null,"Тепловая нагрузка дополнительная, Гкал / час",{"$f":"C78-C77","v":0},{"$f":"D78-D77","v":0},0,0,0,0,0,{"$f":"J78-J77","v":0},{"$f":"K78-K77","v":0},"Считается как разница между Тепловая нагрузка после реконструкции и Тепловая нагрузка существующая"]
[null,"Температурный график"]
[null,"Вид теплоносителя"]
[null,"Давление, м вод. ст."]
[null,"Схема подключения",null,null,null,null,null,null,null,null,null,"Необходимо выбрать из выпадающего списка"]
[]
[null,"ВАЖНО: Если в рамках заявки на подключение планируется заключение договора о подключении нескольких объектов капитального строительства, то заявка должна содержать в себе таблицы нагрузок по каждому объекту."]
[]
[null,"3.2 Режимы теплопотребления для подключаемого объекта:"]
[]
[null,null,null,null,null,null,null,null,null,null,null,"Необходимо выбрать из выпадающего списка"]
[null,"Если нужного варианта режима в списке нет, укажите собственный вариант"]
[]
[]
[null,"3.3 Расположение узла учета тепловой энергии и теплоносителей и контроля их качества"]
[]
[]
[]
[]
[]
[null,"3.4 Требования к надежности теплоснабжения подключаемого объекта (допустимые перерывы в подаче теплоносителей  по продолжительности, периодам годам и др.)"]
[]
[null,null,null,null,null,null,null,null,null,null,null,"Необходимо выбрать из выпадающего списка"]
[null,"При этом для категорий надежности 2 и 3 предусматривается перерыв в теплоснабжении в летний период времени на срок не более 14 дней, обусловленный проведением гидравлических испытаний  "]
[]
[null,"3.5 Наличие и возможность использования собственных источников тепловой энергии (с указанием их мощностей и режимов работы)"]
[]
[null,"Наименование источника тепловой энергии",null,"Тепловая мощность,\nГкал / час",null,"Режим работы"]
[]
[]
[]
[]
[]
[]
[null,"3.6 Назначение объекта:"]
[]
[null,null,null,null,{"$f":"IF(B115=[1]Списки!B25,[1]Списки!C25,IF(B115=[1]Списки!B26,[1]Списки!C26,IF(B115=[1]Списки!B27,[1]Списки!C27,IF(B115=[1]Списки!B28,[1]Списки!C28,IF(B115=[1]Списки!B29,[1]Списки!C29,IF(B115=[1]Списки!B30,[1]Списки!C30,IF(B115=[1]Списки!B31,[1]Списки!C31,IF(B115=[1]Списки!B32,[1]Списки!C32,IF(B115=[1]Списки!B33,[1]Списки!C33,IF(B115=[1]Списки!B34,[1]Списки!C34,IF(B115=[1]Списки!B35,[1]Списки!C35,IF(B115=[1]Списки!B36,[1]Списки!C36,IF(B115=[1]Списки!B37,[1]Списки!C37,IF(B115=[1]Списки!B38,[1]Списки!C38,IF(B115=[1]Списки!B39,[1]Списки!C39,IF(B115=[1]Списки!B40,[1]Списки!C40,IF(B115=[1]Списки!B41,[1]Списки!C41,IF(B115=[1]Списки!B42,[1]Списки!C42,IF(B115=[1]Списки!B43,[1]Списки!C43,IF(B115=[1]Списки!B44,[1]Списки!C44,IF(B115=[1]Списки!B45,[1]Списки!C45,IF(B115=[1]Списки!B46,[1]Списки!B46,IF(B115=[1]Списки!B47,[1]Списки!C47,IF(B115=[1]Списки!B48,[1]Списки!C48,))))))))))))))))))))))))","v":"-"},null,null,null,null,null,null,"Необходимо выбрать из выпадающего списка"]
[]
[null,"4. Правовые основания пользования заявителем подключаемым объектом (при подключении существующего подключаемого объекта):"]
[]
[]
[]
[]
[null,"5. Правовые основания пользования заявителем земельным участком, на котором расположен существующий подключаемый объект или предполагается создание подключаемого объекта:"]
[]
[]
[]
[null,"6. Информация о возможности подключения или технические условия подключения  (если ранее выдавались)"]
[]
[null,"от","дд.мм.гг",null,null,"№"]
[]
[null,"7. Планируемый срок подключения:"]
[]
[null,"мм.гг",null,null,null,null,"* Указывается в случае, если планируемый срок подключения превышает 18 месяцев со дня заключения договора о подключении"]
[]
[null,"8. Информация о виде разрешенного использования земельного участка:"]
[]
[]
[]
[null,"9. Информация о предельных параметрах разрешенного строительства / реконструкции / модернизации подключаемого объекта (площадь, строительный объем, этажность):"]
[]
[]
[]
[null,null,"Перечень необходимых документов для заключения Договора о подключении к системе теплоснабжения ООО \"ТСК Мосэнерго\":"]
[null,"1.","копии правоустанавливающих документов, подтверждающих право собственности или иное законное право заявителя на подключаемый объект или земельный участок, права на которые не зарегистрированы в Едином государственном реестре недвижимости (в случае если такие права зарегистрированы в указанном реестре, представляются соответствующие выписки из Единого государственного реестра недвижимости с датой выдачи не ранее 30 дней), заверенные заявителем;"]
[]
[null,"2.","ситуационный план расположения подключаемого объекта с привязкой к территории населенного пункта или элементам территориального деления в схеме теплоснабжения;"]
[]
[null,"3.","топографическая карта земельного участка в масштабе 1:500 (для квартальной застройки 1:2000) с указанием всех наземных и подземных коммуникаций и сооружений (не прилагается в случае, если заявителем является физическое лицо, осуществляющее создание (реконструкцию) объекта индивидуального жилищного строительства);"]
[]
[null,"4.","копии документов, подтверждающих полномочия лица, действующего от имени заявителя (в случае если заявка подается представителем заявителя), заверенные заявителем;"]
[]
[null,"5.","копии паспорта или иного удостоверяющего личность документа и идентификационного номера налогоплательщика, заверенные заявителем;"]
[]
[null,"6.","при наличии утвержденная комплексная схема инженерного обеспечения территории, утвержденный проект планировки территории и (или) разрешение на строительство."]
[]
[null,"Заявитель",null,null,null,null,null,null,null,"дд.мм.гг"]
[null,null,"ФИО",null,null,null,"Подпись",null,null,"Дата"]
[]
[null,"М.П."]

{"sheet":"Списки","index":4,"n_rows":72,"n_cols":3,"rows_kept":72,"cut":false,"hidden":true,"merged":[]}
[]
[null,"Схема подключения"]
[]
[null,"Зависимая"]
[null,"Независимая"]
[]
[null,"Округ"]
[]
[null,"ЦАО"]
[null,"САО"]
[null,"СВАО"]
[null,"ВАО"]
[null,"ЮВАО"]
[null,"ЮАО"]
[null,"ЮЗАО"]
[null,"ЗАО"]
[null,"СЗАО"]
[null,"Новомосковский АО"]
[null,"Троицкий АО"]
[null,"Зеленоградский АО"]
[]
[null,"Назначение объекта"]
[]
["№","Категория","Комментарий"]
[null,null,"-"]
[1,"Жилые дома","Жилые дома"]
[2,"Общественные и административно-бытовые помещения","Гостиницы, общежития, пансионаты, д/о, мотели"]
[3,"ДОУ","Детсады, ясли"]
[4,"Объекты спортивного назначения","Стадионы, ФОК, бассейны, спортзалы, спортшколы"]
[5,"Здравоохранение","Больницы, родильные дома, поликлиники, амбулатории, госпитали, морги"]
[6,"Образование","Школы, интернаты, дом ребенка, ПТУ, училища, Вузы, амбулатории"]
[7,"Административно-офисные помещения","МФК, офисы, деловые центры, типографии, почта"]
[8,"Социально-бытовые объекты","Прачечные, химчистки, душевые, бани,парикмахерские, общественные туалеты"]
[9,"Объекты торгового назначения","Магазин, торговые центры, торговые залы, аптеки, вещевой рынок, ларьки, торговые палатки"]
[10,"Досугово-развлекательные учреждения","Дом культуры, интернет-кафе, дискотеки, клубы"]
[11,"Культурные объекты","Театры, кинотеатры, музеи, постоянно действующие выставочные комплексы (центры)"]
[12,"Предприятия общественного питания","Столовые, кафе, рестораны, пиццерии, хлебопекарня"]
[13,"Объекты производственного назначения","Заводы, цеха, станции, тепловые пункты, депо, гаражи,ремонтно-механические мастерские, склады, АЗС,СТО"]
[14,"Объекты городской инфраструктуры","Вокзалы, парки, оранжереи, теплицы, сельхоз.рынки"]
[15,"Транспортная инфраструктура","Дороги, эстакады, мосты, тоннели, путепроводы, жел.дор.пути"]
[16,"Религиозные сооружения","Храм, церковь, синагога, мечеть, монастырь, часовня, кирха"]
[17,"Объекты защиты населения","Полиция, мчс, военные, ГИБДД, вневедомственная охрана, ЧОПы, военная полиция"]
[18,"Объекты складского назначения","Склады, навесы, ангары, сараи"]
[19,"Нежилые помещения","Объекты заявлены как нежилые помещение без уточнения дальнейшего назначения"]
[20,"Комплексная застройка","Большая застройка, куда попадают  объекты из разных категорий"]
[21,"Объекты незавершенного строительства","незавершенные объекты для проведения отделочных и пуско-наладочных работ"]
[22,"Прочее","Все, что не попало в категории выше"]
[]
[null,"Отделения сбыта"]
[]
[null,"Отделение сбыта №1 - г. Москва, ул. Складочная, д. 1А, стр. 1"]
[null,"Отделение сбыта №2 - г. Москва, ул. Бибиревская, д. 8 кор. 1"]
[null,"Отделение сбыта №3 - г. Москва, ул. Шарикоподшипниковская, д.1"]
[null,"Отделение сбыта №4 - г.Москва, пр. Андропова, д. 36 к. 2"]
[null,"Отделение сбыта №5 - г.Москва, ул.Героев Панфиловцев, д.10, к. 1"]
[null,"Отделение сбыта №6 - г.Зеленоград, корп. 1111А"]
[null,"Отделение сбыта №7 - г.Московский, 3 мкр., д.2а"]
[]
[]
[null,"Режим теплопотребления"]
[]
[null,"непрерывный"]
[null,"односменный"]
[null,"двухсменный"]
[null,"сезонный"]
[]
[]
[null,"Требования к надежности"]
[]
[null,"1 категория - потребители, не допускающие перерывов в подаче расчетного количества теплоты и снижения температуры воздуха в помещениях ниже расчетных"]
[null,"2 категория - потребители, допускающие снижение температуры в отапливаемых помещениях на период ликвидации аварии, но не более 54 ч: - жилых и общественных зданий до 12 °С; - промышленных зданий до 8 °С  "]
[null,"3 категория - остальные потребители"]